bitfinex/quotes_SOLUSD_20240628
["timestamp","ask_amount","ask_price","bid_price","bid_amount"]
[1719572171292,42.8358,145.44,145.38,15.96]
[1719572171497,35.96,145.44,145.38,15.96]
[1719572171905,42.8357,145.44,145.39,15.96]
[1719572172107,35.96,145.44,145.39,15.96]
[1719572172310,42.8356,145.44,145.39,15.96]
[1719572172928,20.0,145.44,145.4,15.96]
[1719572174105,20.0,145.44,145.41,15.96]
[1719572174402,20.0,145.45,145.41,15.96]
[1719572176522,26.8752,145.45,145.41,15.96]
[1719572177420,42.8352,145.45,145.4,15.96]
[1719572177822,6.8758,145.44,145.4,15.96]
[1719572178027,20.0,145.43,145.4,15.96]
[1719572178525,20.0,145.44,145.4,15.96]
[1719572180038,26.8756,145.44,145.4,15.96]
[1719572180225,20.0,145.44,145.4,15.96]
[1719572180419,6.1262,145.47,145.35,32.2106]
[1719572180620,16.7786,145.48,145.43,15.96]
[1719572181325,16.7786,145.48,145.4,15.7231]
[1719572181624,6.874,145.48,145.44,15.96]
[1719572182907,6.8743,145.47,145.43,15.96]
[1719572183113,15.96,145.47,145.4,31.6831]
[1719572183438,26.8749,145.46,145.41,15.96]
[1719572185231,20.0,145.46,145.42,17.2896975]
[1719572185423,20.0,145.46,145.42,15.96]
[1719572190012,20.0,145.46,145.43,1.32951463]
[1719572190226,20.0,145.46,145.43,17.28951463]
[1719572190422,20.0,145.48,145.44,1.32942321]
[1719572190621,20.0,145.48,145.43,15.96]
[1719572190818,42.8338,145.48,145.43,15.96]
[1719572191224,42.8339,145.48,145.4,15.7231]
[1719572191422,20.0,145.48,145.42,15.96]
[1719572191737,42.8335,145.49,145.44,15.96]
[1719572194255,6.8739,145.48,145.44,15.96]
[1719572194441,20.0,145.47,145.44,15.96]
[1719572194748,26.8744,145.47,145.44,15.96]
[1719572195060,26.8744,145.47,145.43,15.96]
[1719572196229,20.0,145.47,145.44,15.96]
[1719572196620,20.0,145.48,145.44,15.96]
[1719572197240,26.8738,145.48,145.44,15.96]
[1719572199026,3.58223905,145.53,145.4,15.7231]
[1719572199224,6.872,145.52,145.47,15.96]
[1719572199527,14.1392503,145.52,145.48,15.96]
[1719572199747,7.2672503,145.51,145.48,15.96]
[1719572200526,7.2672503,145.51,145.47,15.96]
[1719572201342,14.1395503,145.51,145.46,15.96]
[1719572201549,6.8723,145.51,145.46,15.96]
[1719572202351,15.96,145.52,145.47,15.96]
[1719572202352,22.832,145.52,145.47,15.96]
[1719572202557,27.26780026,145.51,145.47,15.96]
[1719572202736,20.0,145.51,145.47,15.96]
[1719572203146,20.0,145.51,145.45,15.9661]
[1719572203349,22.831,145.54,145.48,15.96]
[1719572203554,34.13965055,145.53,145.48,15.96]
[1719572203864,20.0,145.53,145.46,63.84]
[1719572204661,20.0,145.53,145.47,1.37322606]
[1719572204954,3.58223905,145.58,145.47,1.37322606]
[1719572204955,20.0,145.54,145.47,1.37322606]
[1719572205151,20.0,145.55,145.47,1.37322606]
[1719572205362,26.8705,145.55,145.47,1.37322606]
[1719572205743,6.8701,145.56,145.52,15.96]
[1719572205948,15.96,145.58,145.53,15.96]
[1719572206142,7.26772831,145.57,145.53,15.96]
[1719572206350,6.8699,145.57,145.53,15.96]
[1719572206862,6.8699,145.57,145.48,22.5154]
[1719572207042,6.8705,145.55,145.48,22.5154]
[1719572207356,26.8702,145.56,145.51,15.96]
[1719572207559,20.0,145.56,145.51,15.96]
[1719572207740,20.0,145.56,145.52,15.96]
[1719572211363,20.0,145.56,145.53,1.37374206]
[1719572211539,6.8692,145.58,145.54,15.96]
[1719572211540,20.0,145.57,145.54,15.96]
[1719572212260,6.8692,145.58,145.54,15.96]
[1719572213054,6.8696,145.57,145.48,22.5154]
[1719572213261,6.8696,145.57,145.53,15.96]
[1719572213540,6.8696,145.57,145.52,15.96]
[1719572213748,47.77923905,145.64,145.53,16.6665]
[1719572214034,6.8684,145.6,145.55,15.96]
[1719572215066,6.8684,145.6,145.56,1.37374692]
[1719572215449,20.0,145.59,145.55,17.33374692]
[1719572215647,20.0,145.6,145.56,15.96]
[1719572216766,26.8681,145.6,145.56,15.96]
[1719572216965,6.8686,145.59,145.55,15.96]
[1719572217168,26.8683,145.6,145.55,15.96]
[1719572217365,42.8283,145.6,145.54,15.96]
[1719572217950,20.0,145.6,145.54,15.96]
[1719572218162,23.487,145.64,145.57,15.96]
[1719572218163,6.8672,145.62,145.57,15.96]
[1719572218362,20.0,145.61,145.58,15.96]
[1719572219263,20.0,145.62,145.58,15.96]
[1719572220265,20.0,145.62,145.53,23.0431]
[1719572220266,26.8673,145.62,145.53,23.0431]
[1719572220471,26.8673,145.62,145.57,15.96]
[1719572220863,20.0,145.62,145.53,86.8831]
[1719572221177,20.0,145.62,145.58,15.96]
[1719572221773,26.8672,145.62,145.57,15.96]
[1719572222159,6.8676,145.61,145.57,15.96]
[1719572222355,15.96,145.6,145.53,16.6665]
[1719572222570,22.8291,145.58,145.51,16.6665]
[1719572222760,22.8291,145.58,145.52,15.96]
[1719572223675,15.96,145.58,145.52,15.96]
[1719572224780,15.96,145.58,145.53,15.96]
[1719572225368,6.8687,145.59,145.5,16.6665]
[1719572225552,35.96,145.58,145.53,15.96]
[1719572225753,20.0,145.58,145.54,15.96]
[1719572225988,35.96,145.59,145.54,15.96]
[1719572227786,42.8286,145.59,145.54,15.96]
[1719572228081,42.8286,145.59,145.53,15.96]
[1719572228460,15.96,145.58,145.53,15.96]
[1719572229680,35.96,145.59,145.53,15.96]
[1719572230281,35.96,145.59,145.54,15.96]
[1719572230667,20.0,145.59,145.54,15.96]
[1719572230861,35.96,145.59,145.54,15.96]
[1719572233453,20.0,145.59,145.54,15.96]
[1719572233854,20.0,145.59,145.55,15.96]
[1719572234076,20.0,145.59,145.56,15.96]
[1719572234277,20.0,145.59,145.5,16.6665]
[1719572234278,35.96,145.63,145.57,15.96]
[1719572234452,26.8668,145.63,145.57,15.96]
[1719572234655,15.96,145.62,145.57,15.96]
[1719572234880,20.0,145.61,145.57,15.96]
[1719572235586,20.0,145.61,145.54,15.5591]
[1719572235762,35.96,145.63,145.58,15.96]
[1719572237081,20.0,145.63,145.59,17.33365203]
[1719572237285,20.0,145.63,145.6,15.96]
[1719572239062,20.0,145.64,145.6,15.96]
[1719572241172,20.0,145.64,145.61,15.96]
[1719572241365,20.0,145.64,145.6,15.96]
[1719572241568,6.8657,145.65,145.6,15.96]
[1719572242068,20.0,145.64,145.6,15.96]
[1719572242988,26.8662,145.64,145.6,15.96]
[1719572243584,26.8662,145.64,145.59,15.96]
[1719572244676,20.0,145.64,145.59,15.96]
[1719572245075,26.8665,145.64,145.59,15.96]
[1719572245690,20.0,145.64,145.59,15.96]
[1719572246377,20.0,145.64,145.6,15.96]
[1719572246578,16.2916,145.68,145.6,15.96]
[1719572246579,6.8653,145.66,145.6,15.96]
[1719572246879,35.96,145.65,145.6,15.96]
[1719572247680,42.8258,145.65,145.58,16.6141]
[1719572247887,42.8258,145.65,145.6,15.96]
[1719572248490,20.0,145.65,145.6,15.96]
[1719572248691,20.0,145.65,145.61,1.37320172]
[1719572249399,20.0,145.65,145.61,17.33320172]
[1719572249582,20.0,145.65,145.58,16.6141]
[1719572249785,20.0,145.65,145.6,15.96]
[1719572250591,20.0,145.65,145.61,1.3732773]
[1719572250783,20.0,145.65,145.6,15.96]
[1719572251291,20.0,145.65,145.61,15.96]
[1719572251500,20.0,145.66,145.61,15.96]
[1719572251667,20.0,145.66,145.62,15.96]
[1719572251969,6.387,145.68,145.63,15.96]
[1719572252169,20.0,145.67,145.63,15.96]
[1719572252789,22.8258,145.65,145.58,16.6141]
[1719572252995,22.8258,145.65,145.59,15.96]
[1719572253602,15.96,145.64,145.59,15.96]
[1719572254097,15.96,145.65,145.59,15.96]
[1719572254279,22.8258,145.65,145.59,15.96]
[1719572254676,15.96,145.65,145.59,15.96]
[1719572255897,15.96,145.65,145.6,15.96]
[1719572257291,22.8254,145.66,145.6,15.96]
[1719572257493,20.0,145.65,145.6,15.96]
[1719572260380,42.8258,145.65,145.58,16.6141]
[1719572260596,6.8662,145.64,145.6,15.96]
[1719572261207,6.8662,145.64,145.59,15.96]
[1719572261501,22.8262,145.64,145.58,32.5741]
[1719572261704,15.96,145.62,145.56,16.6141]
[1719572261903,15.96,145.62,145.56,15.96]
[1719572262090,22.8272,145.62,145.56,15.96]
[1719572262901,15.96,145.62,145.56,15.96]
[1719572263106,15.96,145.62,145.54,16.2094]
[1719572263323,15.96,145.62,145.56,15.96]
[1719572264013,22.8272,145.62,145.56,15.96]
[1719572267982,15.96,145.62,145.56,15.96]
[1719572269410,15.96,145.62,145.57,15.96]
[1719572269589,15.96,145.62,145.55,1.37382026]
[1719572270313,15.96,145.62,145.54,21.74149221]
[1719572271699,6.4303,145.63,145.54,21.74149221]
[1719572271895,20.0,145.62,145.54,23.11520304]
[1719572272214,20.0,145.62,145.55,1.37371083]
[1719572273415,20.0,145.62,145.54,21.74149221]
[1719572273602,35.96,145.62,145.54,21.74149221]
[1719572277718,15.96,145.61,145.56,15.96]
[1719572277918,52.7318,145.62,145.56,15.96]
[1719572280619,45.8646,145.62,145.56,15.96]
[1719572282713,45.8646,145.62,145.53,22.8262]
[1719572282714,15.96,145.58,145.53,22.8262]
[1719572282920,15.96,145.57,145.52,15.96]
[1719572283197,15.96,145.58,145.53,15.96]
[1719572283607,15.96,145.59,145.53,15.96]
[1719572285907,15.96,145.59,145.5,22.14865534]
[1719572285908,22.8286,145.59,145.5,22.14865534]
[1719572286216,22.8286,145.59,145.53,15.96]
[1719572286414,6.8691,145.58,145.53,15.96]
[1719572286716,6.8691,145.58,145.52,15.96]
[1719572286717,15.96,145.57,145.52,15.96]
[1719572286922,22.8291,145.58,145.52,15.96]
[1719572287820,22.8291,145.58,145.5,16.5645]
[1719572287821,15.96,145.57,145.5,16.5645]
[1719572288018,15.96,145.57,145.52,15.96]
[1719572288332,15.96,145.57,145.5,16.5645]
[1719572288504,15.96,145.57,145.52,15.96]
[1719572289412,15.96,145.57,145.5,16.5645]
[1719572289611,15.96,145.57,145.52,15.96]
[1719572290320,15.96,145.57,145.51,15.96]
[1719572291628,15.96,145.57,145.5,16.5645]
[1719572291807,15.96,145.57,145.51,15.96]
[1719572292420,15.96,145.56,145.51,15.96]
[1719572295217,15.96,145.56,145.49,5.6633657]
[1719572295425,15.96,145.56,145.5,15.96]
[1719572297227,9.9046,145.57,145.5,15.96]
[1719572297535,25.8646,145.57,145.52,15.96]
[1719572298614,9.9046,145.57,145.52,15.96]
[1719572300924,22.5048,145.58,145.52,15.96]
[1719572301125,20.0,145.57,145.52,15.96]
[1719572301435,20.0,145.57,145.53,15.96]
[1719572302646,20.0,145.57,145.54,15.96]
[1719572305020,20.0,145.58,145.54,15.96]
[1719572305439,26.8691,145.58,145.54,15.96]
[1719572306434,26.8691,145.58,145.53,15.96]
[1719572309828,42.8291,145.58,145.52,15.96]
[1719572310029,6.8696,145.57,145.49,22.0219]
[1719572310228,6.8707,145.55,145.49,15.8375]
[1719572310452,22.8307,145.55,145.5,15.96]
[1719572311326,22.8301,145.56,145.5,15.96]
[1719572312043,22.8301,145.56,145.49,15.8375]
[1719572312245,6.8701,145.56,145.5,15.96]
[1719572312448,15.96,145.55,145.5,15.96]
[1719572312647,22.831,145.54,145.48,15.96]
[1719572313225,15.96,145.54,145.48,15.96]
[1719572314638,15.96,145.54,145.49,17.33447693]
[1719572314943,15.96,145.54,145.48,1.37443971]
[1719572315131,15.96,145.54,145.49,15.96]
[1719572317049,15.96,145.54,145.47,15.96]
[1719572317232,15.96,145.54,145.49,15.96]
[1719572318350,15.96,145.54,145.48,15.96]
[1719572318534,15.96,145.54,145.49,1.37448713]
[1719572319038,15.96,145.54,145.47,15.96]
[1719572319351,22.8309,145.54,145.46,5.65734754]
[1719572319525,15.96,145.53,145.47,15.96]
[1719572322757,15.96,145.53,145.46,15.96]
[1719572322960,15.96,145.53,145.48,15.96]
[1719572324760,6.8706,145.55,145.49,1.37458708]
[1719572324965,20.0,145.54,145.49,17.33458708]
[1719572325181,20.0,145.54,145.49,15.96]
[1719572325554,20.0,145.54,145.47,1.37448016]
[1719572325555,20.0,145.54,145.5,15.96]
[1719572328066,20.0,145.54,145.49,15.96]
[1719572328856,22.8306,145.55,145.49,15.96]
[1719572329056,32.7347,145.56,145.5,17.33433443]
[1719572329336,32.7347,145.56,145.5,1.37433443]
[1719572329560,32.7347,145.56,145.51,15.96]
[1719572329766,22.3298,145.57,145.52,15.96]
[1719572329970,6.3698,145.57,145.52,15.96]
[1719572330187,6.3698,145.57,145.53,15.96]
[1719572330546,13.2395,145.57,145.53,15.96]
[1719572330965,13.2395,145.57,145.52,15.96]
[1719572332071,6.3698,145.57,145.52,15.96]
[1719572332270,22.8291,145.58,145.52,15.96]
[1719572332570,20.0,145.57,145.53,17.33407645]
[1719572332757,20.0,145.57,145.53,15.96]
[1719572333071,20.0,145.58,145.53,15.96]
[1719572333469,20.0,145.58,145.5,16.2445]
[1719572333470,26.8692,145.58,145.5,16.2445]
[1719572333674,26.8692,145.58,145.53,15.96]
[1719572337986,26.8692,145.58,145.54,15.96]
[1719572340867,6.8695,145.57,145.54,15.96]
[1719572341258,6.8691,145.58,145.54,15.96]
[1719572341463,6.8687,145.59,145.54,15.96]
[1719572341675,16.7729,145.6,145.55,15.96]
[1719572342376,6.8686,145.59,145.55,15.96]
[1719572344955,6.8686,145.59,145.54,15.96]
[1719572345158,22.8286,145.59,145.53,15.96]
[1719572346557,22.8291,145.58,145.53,15.96]
[1719572346978,15.96,145.58,145.53,15.96]
[1719572350870,15.96,145.58,145.5,32.489]
[1719572351074,15.96,145.58,145.52,15.96]
[1719572351257,22.829,145.58,145.52,15.96]
[1719572351462,15.96,145.57,145.5,16.2445]
[1719572351663,15.96,145.57,145.51,15.96]
[1719572353785,6.4712,145.59,145.51,15.96]
[1719572353990,20.0,145.58,145.51,15.96]
[1719572361285,20.0,145.58,145.49,21.79032957]
[1719572361597,20.0,145.58,145.51,15.96]
[1719572363212,6.4712,145.59,145.51,15.96]
[1719572363374,20.0,145.58,145.51,15.96]
[1719572367997,40.67,145.58,145.49,16.2445]
[1719572368174,15.96,145.54,145.49,16.2445]
[1719572368504,40.67,145.58,145.49,16.2445]
[1719572368505,15.96,145.53,145.49,16.2445]
[1719572368698,15.96,145.53,145.47,32.1421]
[1719572369369,15.96,145.53,145.47,16.1821]
[1719572369594,15.96,145.53,145.47,32.1421]
[1719572373201,15.96,145.53,145.47,16.1821]
[1719572373372,15.96,145.53,145.47,32.1421]
[1719572374604,15.96,145.53,145.48,15.96]
[1719572376495,15.96,145.53,145.47,16.1821]
[1719572376700,15.96,145.53,145.47,32.1421]
[1719572379898,15.96,145.55,145.49,15.96]
[1719572380218,20.0,145.54,145.49,15.96]
[1719572380579,20.0,145.54,145.5,15.96]
[1719572381001,20.0,145.55,145.51,15.96]
[1719572381179,15.96,145.57,145.51,15.96]
[1719572381385,20.0,145.56,145.51,15.96]
[1719572383083,20.0,145.56,145.47,16.1821]
[1719572383283,35.96,145.56,145.51,15.96]
[1719572384098,20.0,145.56,145.51,15.96]
[1719572384301,15.96,145.56,145.51,15.96]
[1719572384486,20.0,145.55,145.51,15.96]
[1719572385615,20.0,145.55,145.52,15.96]
[1719572385808,20.0,145.56,145.52,15.96]
[1719572386408,35.96,145.56,145.47,22.2811]
[1719572386790,35.96,145.56,145.51,15.96]
[1719572387102,35.96,145.56,145.5,15.96]
[1719572390107,35.96,145.56,145.47,22.2811]
[1719572390318,35.96,145.56,145.5,15.96]
[1719572391191,35.96,145.56,145.51,15.96]
[1719572392104,35.96,145.56,145.47,22.2811]
[1719572392303,35.96,145.56,145.51,15.96]
[1719572397423,35.96,145.56,145.5,15.96]
[1719572398524,35.96,145.56,145.51,15.96]
[1719572399806,20.0,145.56,145.51,15.96]
[1719572400005,20.0,145.55,145.51,15.96]
[1719572400313,20.0,145.58,145.51,15.96]
[1719572400715,20.0,145.58,145.47,22.2811]
[1719572400911,15.96,145.54,145.47,16.1821]
[1719572401117,35.96,145.53,145.47,16.1821]
[1719572401319,35.96,145.53,145.47,32.1421]
[1719572401517,15.96,145.52,145.47,15.96]
[1719572401830,20.0,145.51,145.45,5.41166303]
[1719572402024,20.0,145.51,145.44,21.7936]
[1719572402334,35.96,145.51,145.44,15.2989]
[1719572402522,35.96,145.51,145.45,15.96]
[1719572402912,35.96,145.51,145.44,15.2989]
[1719572403110,35.96,145.51,145.45,15.96]
[1719572403327,15.96,145.5,145.44,20.7458401]
[1719572403513,15.96,145.5,145.45,15.96]
[1719572403713,15.96,145.49,145.41,16.3252]
[1719572403928,20.0,145.48,145.43,15.96]
[1719572404108,15.96,145.47,145.42,15.96]
[1719572404308,15.96,145.47,145.41,16.3252]
[1719572404515,20.0,145.46,145.42,15.96]
[1719572404743,35.96,145.48,145.42,15.96]
[1719572405105,20.0,145.48,145.43,15.96]
[1719572405309,35.96,145.48,145.41,16.3252]
[1719572405510,15.96,145.46,145.41,15.96]
[1719572405919,20.0,145.45,145.41,15.96]
[1719572406310,15.96,145.46,145.41,15.96]
[1719572406515,35.96,145.45,145.4,15.96]
[1719572406930,20.0,145.45,145.4,15.96]
[1719572408339,20.0,145.45,145.37,21.64365544]
[1719572408533,20.0,145.45,145.4,15.96]
[1719572409420,20.0,145.45,145.41,15.96]
[1719572409933,15.96,145.47,145.42,15.96]
[1719572410133,20.0,145.46,145.42,15.96]
[1719572410640,9.9046,145.49,145.37,21.64365544]
[1719572410641,9.9046,145.49,145.39,15.96]
[1719572410834,25.8646,145.49,145.44,15.96]
[1719572411941,25.8646,145.49,145.37,21.64365544]
[1719572412122,25.8646,145.49,145.43,15.96]
[1719572412440,35.96,145.48,145.43,15.96]
[1719572413328,20.0,145.48,145.43,15.96]
[1719572413529,35.96,145.48,145.43,15.96]
[1719572414245,20.0,145.48,145.43,15.96]
[1719572417038,35.96,145.48,145.43,15.96]
[1719572417426,35.96,145.48,145.39,63.84]
[1719572417752,15.96,145.47,145.41,15.96]
[1719572418051,20.0,145.46,145.41,15.96]
[1719572418350,35.96,145.46,145.41,15.96]
[1719572420135,15.96,145.45,145.37,21.64365544]
[1719572420344,15.96,145.45,145.4,15.96]
[1719572420549,35.96,145.44,145.39,15.96]
[1719572420932,15.96,145.44,145.39,15.96]
[1719572421141,15.96,145.45,145.39,15.96]
[1719572421444,20.0,145.44,145.39,15.96]
[1719572421665,20.0,145.44,145.4,15.96]
[1719572422946,20.0,145.44,145.39,15.96]
[1719572424553,20.0,145.44,145.4,15.96]
[1719572425257,20.0,145.44,145.41,15.96]
[1719572425561,20.0,145.45,145.41,15.96]
[1719572427744,20.0,145.46,145.42,15.96]
[1719572427943,15.96,145.48,145.42,15.96]
[1719572427944,20.0,145.47,145.42,15.96]
[1719572435849,35.96,145.47,145.42,15.96]
[1719572436234,35.96,145.47,145.41,15.96]
[1719572437747,15.96,145.45,145.37,21.64365544]
[1719572438057,20.0,145.44,145.37,16.0401]
[1719572438236,20.0,145.44,145.39,15.96]
[1719572439264,20.0,145.44,145.4,15.96]
[1719572439944,20.0,145.44,145.37,16.0401]
[1719572440149,15.96,145.47,145.41,15.96]
[1719572440353,25.8646,145.49,145.44,15.96]
[1719572441374,9.9046,145.49,145.44,15.96]
[1719572441739,20.0,145.48,145.44,15.96]
[1719572443270,9.9046,145.49,145.44,15.96]
[1719572443468,6.2791,145.5,145.45,15.96]
[1719572444539,20.0,145.49,145.45,15.96]
[1719572444966,20.0,145.5,145.45,15.96]
[1719572446365,20.0,145.5,145.46,15.96]
[1719572446864,20.0,145.5,145.42,16.5129]
[1719572447164,15.96,145.48,145.43,15.96]
[1719572447350,20.0,145.47,145.43,15.96]
[1719572447552,20.0,145.47,145.42,16.5129]
[1719572447758,35.96,145.47,145.42,15.96]
[1719572447961,20.0,145.47,145.42,15.96]
[1719572448354,20.0,145.47,145.43,15.96]
[1719572448562,20.0,145.48,145.44,15.96]
[1719572449350,20.0,145.48,145.45,15.96]
[1719572456368,20.0,145.48,145.44,15.96]
[1719572457278,20.0,145.48,145.43,15.96]
[1719572458771,20.0,145.48,145.39,63.84]
[1719572458973,20.0,145.48,145.42,15.96]
[1719572459151,15.96,145.47,145.41,15.96]
[1719572459347,20.0,145.48,145.38,15.7705]
[1719572459348,20.0,145.46,145.38,15.7705]
[1719572459567,15.96,145.44,145.39,15.96]
[1719572464763,15.96,145.45,145.4,15.96]
[1719572464965,20.0,145.44,145.4,15.96]
[1719572465478,20.0,145.45,145.41,15.96]
[1719572466757,20.0,145.45,145.39,15.96]
[1719572466972,25.8646,145.48,145.39,15.96]
[1719572466973,20.0,145.47,145.44,15.96]
[1719572467376,9.9046,145.52,145.46,15.96]
[1719572467565,9.9046,145.52,145.47,15.96]
[1719572467893,9.9046,145.52,145.48,15.96]
[1719572468258,6.3757,145.53,145.49,15.96]
[1719572468570,6.3633,145.55,145.46,15.96]
[1719572468772,27.0333,145.59,145.52,15.96]
[1719572468989,15.96,145.58,145.53,15.96]
[1719572469192,6.3633,145.59,145.54,15.96]
[1719572469399,15.96,145.57,145.44,16.2797]
[1719572469676,15.96,145.57,145.52,15.96]
[1719572470668,15.96,145.57,145.51,15.96]
[1719572470870,15.96,145.55,145.5,15.96]
[1719572471067,20.0,145.54,145.5,15.96]
[1719572471479,20.0,145.54,145.49,15.96]
[1719572471679,20.0,145.54,145.44,21.93732112]
[1719572471881,15.96,145.55,145.49,15.96]
[1719572472086,20.0,145.54,145.49,15.96]
[1719572472466,20.0,145.54,145.46,63.84]
[1719572472467,20.0,145.54,145.5,15.96]
[1719572473378,20.0,145.55,145.51,15.96]
[1719572474388,20.0,145.55,145.46,63.84]
[1719572474389,20.0,145.55,145.5,15.96]
[1719572475770,6.3633,145.59,145.53,15.96]
[1719572475966,6.3633,145.59,145.55,15.96]
[1719572477385,20.0,145.58,145.55,15.96]
[1719572478682,21.9649,145.63,145.57,15.96]
[1719572478882,41.9649,145.63,145.57,15.96]
[1719572479767,26.0049,145.63,145.57,15.96]
[1719572480184,41.9649,145.63,145.57,15.96]
[1719572480894,26.0049,145.63,145.57,15.96]
[1719572481091,3.59513508,145.68,145.53,15.96]
[1719572481092,15.9508,145.67,145.61,15.96]
[1719572481587,15.96,145.65,145.54,1.37355158]
[1719572481795,15.96,145.66,145.6,15.96]
[1719572482180,15.96,145.65,145.59,15.96]
[1719572482592,15.96,145.64,145.59,15.96]
[1719572482892,15.96,145.64,145.53,63.84]
[1719572483085,15.96,145.64,145.59,15.96]
[1719572485879,20.0,145.63,145.58,15.96]
[1719572486583,15.96,145.64,145.58,15.96]
[1719572486903,20.0,145.63,145.58,15.96]
[1719572489782,20.0,145.63,145.53,63.84]
[1719572489984,15.96,145.62,145.56,15.96]
[1719572490197,15.96,145.62,145.57,15.96]
[1719572490803,15.96,145.62,145.51,31.4103]
[1719572490992,20.0,145.61,145.51,31.4103]
[1719572491193,20.0,145.61,145.57,15.96]
[1719572495397,20.0,145.61,145.53,15.96]
[1719572495398,15.96,145.59,145.53,15.96]
[1719572495592,20.0,145.58,145.53,15.96]
[1719572497305,20.0,145.58,145.51,15.4503]
[1719572497502,20.0,145.58,145.55,15.96]
[1719572497824,20.0,145.59,145.55,15.96]
[1719572501011,20.0,145.59,145.57,15.96]
[1719572501218,20.0,145.6,145.57,15.96]
[1719572503992,20.0,145.6,145.56,15.96]
[1719572507913,20.0,145.6,145.57,15.96]
[1719572509602,20.0,145.6,145.56,15.96]
[1719572510606,20.0,145.6,145.53,63.84]
[1719572510922,20.0,145.6,145.56,15.96]
[1719572512610,20.0,145.6,145.57,15.96]
[1719572513714,20.0,145.6,145.58,15.96]
[1719572514228,25.8646,145.63,145.58,15.96]
[1719572514522,20.0,145.62,145.58,15.96]
[1719572514926,20.0,145.62,145.54,0.56270922]
[1719572515103,20.0,145.62,145.6,15.96]
[1719572515426,20.0,145.63,145.6,15.96]
[1719572515621,20.0,145.63,145.54,1.37354058]
[1719572515622,20.0,145.63,145.61,15.96]
[1719572516407,20.0,145.66,145.61,15.96]
[1719572516906,32.3953,145.67,145.62,15.96]
[1719572518524,20.0,145.66,145.62,15.96]
[1719572520729,6.5307,145.67,145.63,15.96]
[1719572520911,37.8260995,145.71,145.64,15.96]
[1719572521106,37.8260995,145.71,145.65,15.96]
[1719572521107,20.0,145.7,145.65,15.96]
[1719572521313,35.96,145.7,145.65,15.96]
[1719572522138,20.0,145.7,145.65,15.96]
[1719572522316,35.96,145.7,145.65,15.96]